[Event "Early-Titled-Tuesday-Blitz-February-06-2024"]
[Site "Chess.com"]
[Date "2024.02.06"]
[Round "1"]
[White "TigrVShlyape"]
[Black "winniethepooh04"]
[Result "1-0"]
[WhiteElo "2969"]
[BlackElo "2508"]
[TimeControl "180+1"]
[EndTime "8:08:59 PST"]
[Termination "TigrVShlyape won by resignation"]

1. e4 {[%clk 0:03:00.9]} 1... e6 {[%clk 0:03:00.9]} 2. d4 {[%clk 0:02:58.9]}
2... d5 {[%clk 0:03:01]} 3. Nc3 {[%clk 0:02:59.5]} 3... dxe4 {[%clk 0:03:01.1]}
4. Nxe4 {[%clk 0:02:59]} 4... Nd7 {[%clk 0:03:01.7]} 5. Nf3 {[%clk 0:02:58.5]}
5... Ngf6 {[%clk 0:03:02.4]} 6. Bd3 {[%clk 0:02:58.5]} 6... c5 {[%clk
0:03:02.4]} 7. O-O {[%clk 0:02:50.3]} 7... cxd4 {[%clk 0:03:02.2]} 8. Nxd4
{[%clk 0:02:48.1]} 8... Be7 {[%clk 0:03:01.9]} 9. Nxf6+ {[%clk 0:02:21.8]} 9...
Nxf6 {[%clk 0:03:02.8]} 10. Nf3 {[%clk 0:02:15.9]} 10... O-O {[%clk 0:03:01.4]}
11. Ne5 {[%clk 0:02:00.8]} 11... Bd7 {[%clk 0:02:59]} 12. Nxd7 {[%clk
0:01:53.2]} 12... Qxd7 {[%clk 0:02:58.8]} 13. Be2 {[%clk 0:01:49.8]} 13... Qc7
{[%clk 0:02:55.2]} 14. c3 {[%clk 0:01:49]} 14... Rad8 {[%clk 0:02:55.7]} 15. Qa4
{[%clk 0:01:47]} 15... a6 {[%clk 0:02:54.9]} 16. Bf3 {[%clk 0:01:46.8]} 16...
Rd7 {[%clk 0:02:53.5]} 17. Bg5 {[%clk 0:01:35.2]} 17... Rfd8 {[%clk 0:02:53.1]}
18. Rad1 {[%clk 0:01:34.2]} 18... h6 {[%clk 0:02:52.2]} 19. Bc1 {[%clk 0:01:31]}
19... Rxd1 {[%clk 0:02:51.1]} 20. Rxd1 {[%clk 0:01:30.4]} 20... Rxd1+ {[%clk
0:02:51.4]} 21. Qxd1 {[%clk 0:01:30.3]} 21... Nd7 {[%clk 0:02:42.3]} 22. g3
{[%clk 0:01:23.8]} 22... Ne5 {[%clk 0:02:37.9]} 23. Bg2 {[%clk 0:01:23.2]} 23...
Nc6 {[%clk 0:02:33.1]} 24. Be3 {[%clk 0:01:17.6]} 24... Bf8 {[%clk 0:02:25.5]}
25. b3 {[%clk 0:01:15.6]} 25... Be7 {[%clk 0:02:21.2]} 26. Qd2 {[%clk
0:01:14.3]} 26... Qd8 {[%clk 0:02:11.4]} 27. Qxd8+ {[%clk 0:01:13.2]} 27... Bxd8
{[%clk 0:02:12.3]} 28. Kf1 {[%clk 0:01:10.2]} 28... Kf8 {[%clk 0:02:12.2]} 29.
Ke2 {[%clk 0:01:10.2]} 29... Ke8 {[%clk 0:02:12.8]} 30. f4 {[%clk 0:01:10.1]}
30... Kd7 {[%clk 0:02:13.1]} 31. Kd3 {[%clk 0:01:10.4]} 31... Be7 {[%clk
0:02:07.9]} 32. b4 {[%clk 0:01:09.6]} 32... Kc7 {[%clk 0:02:06.4]} 33. a3 {[%clk
0:01:09.5]} 33... Bf6 {[%clk 0:02:05.5]} 34. Bc1 {[%clk 0:01:02.8]} 34... Ne7
{[%clk 0:02:04.2]} 35. c4 {[%clk 0:01:02.4]} 35... Nf5 {[%clk 0:01:59.2]} 36. c5
{[%clk 0:01:00.6]} 36... Ne7 {[%clk 0:01:58.9]} 37. Kc4 {[%clk 0:00:58.6]} 37...
Nc6 {[%clk 0:01:56.4]} 38. Be3 {[%clk 0:00:55.8]} 38... Ne7 {[%clk 0:01:50.9]}
39. a4 {[%clk 0:00:55.2]} 39... Nc8 {[%clk 0:01:50.7]} 40. b5 {[%clk 0:00:54.9]}
40... axb5+ {[%clk 0:01:51.6]} 41. axb5 {[%clk 0:00:54.8]} 41... b6 {[%clk
0:01:51.8]} 42. c6 {[%clk 0:00:45.6]} 42... Nd6+ {[%clk 0:01:51.2]} 43. Kb4
{[%clk 0:00:45.9]} 43... Be7 {[%clk 0:01:51.7]} 44. Ka4 {[%clk 0:00:45.4]} 44...
Nc4 {[%clk 0:01:49.5]} 45. Bd4 {[%clk 0:00:44.5]} 45... Bf6 {[%clk 0:01:46.4]}
46. Bf2 {[%clk 0:00:42.2]} 46... Nd6 {[%clk 0:01:43.5]} 47. Bf1 {[%clk
0:00:36.7]} 47... Nf5 {[%clk 0:01:40.1]} 48. Kb4 {[%clk 0:00:32.7]} 48... Be7+
{[%clk 0:01:38]} 49. Kc4 {[%clk 0:00:31.5]} 49... Nd6+ {[%clk 0:01:34.6]} 50.
Kb3 {[%clk 0:00:25.7]} 50... Ne4 {[%clk 0:01:32.3]} 51. Be3 {[%clk 0:00:24]}
51... Bc5 {[%clk 0:01:30.4]} 52. Bxc5 {[%clk 0:00:22.8]} 52... Nxc5+ {[%clk
0:01:31.3]} 53. Kc2 {[%clk 0:00:21.8]} 53... Kd6 {[%clk 0:01:31.6]} 54. Kd2
{[%clk 0:00:20.6]} 54... Ne4+ {[%clk 0:01:31.2]} 55. Ke3 {[%clk 0:00:20.9]}
55... Nc5 {[%clk 0:01:31.3]} 56. Bc4 {[%clk 0:00:20]} 56... f6 {[%clk
0:01:30.7]} 57. h4 {[%clk 0:00:18.5]} 57... Na4 {[%clk 0:01:20.9]} 58. Kf3
{[%clk 0:00:18.1]} 58... g6 {[%clk 0:01:01.5]} 59. Bd3 {[%clk 0:00:17.4]} 59...
f5 {[%clk 0:01:00.3]} 60. g4 {[%clk 0:00:17.4]} 60... Nc5 {[%clk 0:00:57.1]} 61.
Bc2 {[%clk 0:00:16.5]} 61... Kc7 {[%clk 0:00:50.6]} 62. Kg3 {[%clk 0:00:16.1]}
62... Kd6 {[%clk 0:00:48.5]} 63. h5 {[%clk 0:00:16.4]} 63... gxh5 {[%clk
0:00:48.2]} 64. gxf5 {[%clk 0:00:16.8]} 64... exf5 {[%clk 0:00:48.3]} 65. Bxf5
{[%clk 0:00:16.6]} 65... Na4 {[%clk 0:00:47.7]} 66. Kh4 {[%clk 0:00:16.4]} 66...
Nc3 {[%clk 0:00:47.7]} 67. Bd3 {[%clk 0:00:16.4]} 67... Nd5 {[%clk 0:00:47.8]}
68. Kg3 {[%clk 0:00:15.2]} 68... h4+ {[%clk 0:00:47.1]} 69. Kf3 {[%clk
0:00:15.2]} 69... h3 {[%clk 0:00:47.3]} 70. Kg3 {[%clk 0:00:13.2]} 70... h2
{[%clk 0:00:45]} 71. Kxh2 {[%clk 0:00:13.1]} 71... Nxf4 {[%clk 0:00:45.1]} 72.
Bf1 {[%clk 0:00:13.2]} 72... Nd5 {[%clk 0:00:44.8]} 73. Kg3 {[%clk 0:00:13.6]}
73... Ne3 {[%clk 0:00:41.7]} 74. Bd3 {[%clk 0:00:13.2]} 74... Nd5 {[%clk
0:00:40.6]} 75. Kg4 {[%clk 0:00:13.6]} 75... Nc7 {[%clk 0:00:40.8]} 76. Kh5
{[%clk 0:00:13.4]} 76... Ne6 {[%clk 0:00:41]} 77. Kxh6 {[%clk 0:00:13.2]} 77...
Kc7 {[%clk 0:00:41.1]} 78. Bc4 {[%clk 0:00:11.7]} 78... Nc5 {[%clk 0:00:41.6]}
79. Kg5 {[%clk 0:00:11]} 79... Na4 {[%clk 0:00:41.9]} 80. Kf5 {[%clk 0:00:10.6]}
80... Nc5 {[%clk 0:00:42.5]} 81. Ke5 {[%clk 0:00:10.7]} 81... Na4 {[%clk
0:00:43.1]} 82. Kd4 {[%clk 0:00:10.6]} 82... Nc5 {[%clk 0:00:43.8]} 83. Kd5
{[%clk 0:00:10.6]} 83... Na4 {[%clk 0:00:44.1]} 84. Bb3 {[%clk 0:00:10.9]} 84...
Nc5 {[%clk 0:00:44.5]} 85. Bc2 {[%clk 0:00:11.2]} 85... Kc8 {[%clk 0:00:41.5]}
86. Kd6 {[%clk 0:00:11.3]} 1-0

[Event "Early-Titled-Tuesday-Blitz-February-06-2024"]
[Site "Chess.com"]
[Date "2024.02.06"]
[Round "1"]
[White "m_ezat"]
[Black "lucliasco"]
[Result "0-1"]
[WhiteElo "2477"]
[BlackElo "2872"]
[TimeControl "180+1"]
[EndTime "8:09:00 PST"]
[Termination "lucliasco won on time"]

1. d4 {[%clk 0:03:00.9]} 1... Nf6 {[%clk 0:01:15.7]} 2. c4 {[%clk 0:02:58.1]}
2... e6 {[%clk 0:01:16.6]} 3. Nc3 {[%clk 0:02:56.7]} 3... d5 {[%clk 0:01:17.5]}
4. cxd5 {[%clk 0:02:54.8]} 4... exd5 {[%clk 0:01:13.3]} 5. Bg5 {[%clk
0:02:51.1]} 5... c6 {[%clk 0:01:14.2]} 6. Qc2 {[%clk 0:02:42.7]} 6... Be7 {[%clk
0:01:12.9]} 7. e3 {[%clk 0:02:41]} 7... O-O {[%clk 0:01:13.4]} 8. Bd3 {[%clk
0:02:40.1]} 8... h6 {[%clk 0:01:12.6]} 9. Bxf6 {[%clk 0:02:32.2]} 9... Bxf6
{[%clk 0:01:12.4]} 10. Nge2 {[%clk 0:02:32.3]} 10... c5 {[%clk 0:01:12.6]} 11.
O-O {[%clk 0:02:28.6]} 11... c4 {[%clk 0:01:12.8]} 12. Bf5 {[%clk 0:02:27.1]}
12... Nc6 {[%clk 0:01:10.9]} 13. Nf4 {[%clk 0:02:25.5]} 13... Ne7 {[%clk
0:01:08.3]} 14. Bxc8 {[%clk 0:02:24.6]} 14... Rxc8 {[%clk 0:01:09.2]} 15. b3
{[%clk 0:02:16.4]} 15... Qd7 {[%clk 0:00:52.3]} 16. Rab1 {[%clk 0:02:09.9]}
16... b5 {[%clk 0:00:51.6]} 17. bxc4 {[%clk 0:02:08.6]} 17... Rxc4 {[%clk
0:00:52.2]} 18. Qb3 {[%clk 0:02:02]} 18... a6 {[%clk 0:00:52.5]} 19. Nd3 {[%clk
0:01:55.4]} 19... Rfc8 {[%clk 0:00:52.5]} 20. Ne2 {[%clk 0:01:51.6]} 20... Qf5
{[%clk 0:00:51.9]} 21. Ng3 {[%clk 0:01:45.8]} 21... Qg6 {[%clk 0:00:49]} 22. Nc5
{[%clk 0:01:18.9]} 22... h5 {[%clk 0:00:47.6]} 23. h3 {[%clk 0:01:15.4]} 23...
h4 {[%clk 0:00:46.5]} 24. Ne2 {[%clk 0:01:15.3]} 24... Bg5 {[%clk 0:00:45]} 25.
Nd3 {[%clk 0:01:11.7]} 25... Rc2 {[%clk 0:00:44.4]} 26. Ne5 {[%clk 0:01:02.5]}
26... Qe6 {[%clk 0:00:42.6]} 27. Rfe1 {[%clk 0:00:46.9]} 27... Nf5 {[%clk
0:00:41.3]} 28. a4 {[%clk 0:00:43]} 28... f6 {[%clk 0:00:32.2]} 29. Nf3 {[%clk
0:00:42.6]} 29... Kh7 {[%clk 0:00:26.5]} 30. axb5 {[%clk 0:00:41.9]} 30... axb5
{[%clk 0:00:27.3]} 31. Qxb5 {[%clk 0:00:41.8]} 31... Bxe3 {[%clk 0:00:26.8]} 32.
Qd3 {[%clk 0:00:31.8]} 32... Qe4 {[%clk 0:00:23.1]} 33. Qxe4 {[%clk 0:00:21.2]}
33... dxe4 {[%clk 0:00:24]} 34. Nxh4 {[%clk 0:00:12.4]} 34... Bxf2+ {[%clk
0:00:24.1]} 35. Kxf2 {[%clk 0:00:12.1]} 35... Nxh4 {[%clk 0:00:25]} 36. Rbc1
{[%clk 0:00:07.2]} 36... Nf5 {[%clk 0:00:24]} 37. Rxc2 {[%clk 0:00:06.9]} 37...
Rxc2 {[%clk 0:00:24.9]} 38. Rd1 {[%clk 0:00:06.8]} 38... Nd6 {[%clk 0:00:20.1]}
39. Ke3 {[%clk 0:00:05.8]} 39... f5 {[%clk 0:00:20.3]} 40. d5 {[%clk 0:00:05.6]}
40... g5 {[%clk 0:00:20.3]} 41. Nd4 {[%clk 0:00:05]} 41... Rxg2 {[%clk
0:00:20.2]} 42. Rc1 {[%clk 0:00:03.8]} 42... Rg3+ {[%clk 0:00:19.2]} 43. Kf2
{[%clk 0:00:04.1]} 43... Rxh3 {[%clk 0:00:18.8]} 44. Rc7+ {[%clk 0:00:04.5]}
44... Kg8 {[%clk 0:00:19.1]} 45. Rc6 {[%clk 0:00:03.3]} 45... Nf7 {[%clk
0:00:16.6]} 46. Nxf5 {[%clk 0:00:03.1]} 46... Ne5 {[%clk 0:00:17.1]} 47. Re6
{[%clk 0:00:03.3]} 47... Ng4+ {[%clk 0:00:17.1]} 48. Kg2 {[%clk 0:00:04]} 48...
Ra3 {[%clk 0:00:14.4]} 49. Rxe4 {[%clk 0:00:03.8]} 49... Ra2+ {[%clk 0:00:13.9]}
50. Kf3 {[%clk 0:00:03.6]} 50... Nf6 {[%clk 0:00:14.8]} 51. Re7 {[%clk
0:00:03.5]} 51... Ra3+ {[%clk 0:00:14.5]} 52. Kf2 {[%clk 0:00:03.9]} 52... Nxd5
{[%clk 0:00:14.6]} 53. Rg7+ {[%clk 0:00:03.4]} 53... Kf8 {[%clk 0:00:15.3]} 54.
Rxg5 {[%clk 0:00:04.3]} 54... Ra2+ {[%clk 0:00:16]} 55. Kf3 {[%clk 0:00:04.1]}
55... Nf6 {[%clk 0:00:16.9]} 56. Rg6 {[%clk 0:00:03.9]} 56... Kf7 {[%clk
0:00:16.7]} 57. Rg7+ {[%clk 0:00:04.2]} 57... Kf8 {[%clk 0:00:17.2]} 58. Rg6
{[%clk 0:00:03.4]} 58... Kf7 {[%clk 0:00:17.3]} 59. Rg7+ {[%clk 0:00:03.5]}
59... Ke6 {[%clk 0:00:17.8]} 60. Nd4+ {[%clk 0:00:02.8]} 60... Kd5 {[%clk
0:00:18.5]} 61. Ne2 {[%clk 0:00:03.3]} 61... Ra3+ {[%clk 0:00:18.6]} 62. Kf2
{[%clk 0:00:03.7]} 62... Ne4+ {[%clk 0:00:19.2]} 63. Kg2 {[%clk 0:00:03.8]}
63... Ra2 {[%clk 0:00:19.6]} 64. Kf3 {[%clk 0:00:04.1]} 64... Nd2+ {[%clk
0:00:19.7]} 65. Kf2 {[%clk 0:00:04]} 65... Ne4+ {[%clk 0:00:20.3]} 66. Kf3
{[%clk 0:00:04.2]} 66... Nd6 {[%clk 0:00:21.2]} 67. Rg5+ {[%clk 0:00:03.7]}
67... Ke6 {[%clk 0:00:21.5]} 68. Nf4+ {[%clk 0:00:04.1]} 68... Ke7 {[%clk
0:00:22.2]} 69. Rg7+ {[%clk 0:00:04.1]} 69... Ke8 {[%clk 0:00:22.2]} 70. Rg8+
{[%clk 0:00:04.2]} 70... Kf7 {[%clk 0:00:22.6]} 71. Rd8 {[%clk 0:00:04.4]} 71...
Nf5 {[%clk 0:00:22.6]} 72. Rd7+ {[%clk 0:00:04.1]} 72... Kf6 {[%clk 0:00:23.3]}
73. Rb7 {[%clk 0:00:02.6]} 73... Ra3+ {[%clk 0:00:23.3]} 74. Kf2 {[%clk
0:00:03.3]} 74... Nd4 {[%clk 0:00:23.5]} 75. Rb6+ {[%clk 0:00:02.6]} 75... Kf5
{[%clk 0:00:23.7]} 76. Ne2 {[%clk 0:00:01.9]} 76... Ra2 {[%clk 0:00:24]} 0-1

[Event "Early-Titled-Tuesday-Blitz-February-06-2024"]
[Site "Chess.com"]
[Date "2024.02.06"]
[Round "1"]
[White "wild3000"]
[Black "Alexchess1984"]
[Result "0-1"]
[WhiteElo "2367"]
[BlackElo "2678"]
[TimeControl "180+1"]
[EndTime "8:09:08 PST"]
[Termination "Alexchess1984 won by checkmate"]

1. d4 {[%clk 0:03:00.7]} 1... Nf6 {[%clk 0:02:58.5]} 2. Nf3 {[%clk 0:02:57.5]}
2... g6 {[%clk 0:02:57.6]} 3. g3 {[%clk 0:02:57.3]} 3... Bg7 {[%clk 0:02:57.2]}
4. Bg2 {[%clk 0:02:58.2]} 4... b6 {[%clk 0:02:57.4]} 5. O-O {[%clk 0:02:59]}
5... Bb7 {[%clk 0:02:57.4]} 6. c4 {[%clk 0:02:59.4]} 6... O-O {[%clk 0:02:56.6]}
7. Nc3 {[%clk 0:02:59.3]} 7... Ne4 {[%clk 0:02:55.8]} 8. Bf4 {[%clk 0:02:47.8]}
8... Nxc3 {[%clk 0:02:54.6]} 9. bxc3 {[%clk 0:02:47.7]} 9... d6 {[%clk
0:02:55.1]} 10. Qc2 {[%clk 0:02:42.2]} 10... Nd7 {[%clk 0:02:54]} 11. a4 {[%clk
0:02:33.4]} 11... a5 {[%clk 0:02:52.3]} 12. h4 {[%clk 0:02:28.7]} 12... e5
{[%clk 0:02:38.8]} 13. Bg5 {[%clk 0:02:28.6]} 13... Qc8 {[%clk 0:02:20.5]} 14.
h5 {[%clk 0:02:13.9]} 14... Re8 {[%clk 0:02:16.6]} 15. h6 {[%clk 0:02:13.2]}
15... Bh8 {[%clk 0:02:14.7]} 16. Rfe1 {[%clk 0:02:07.3]} 16... exd4 {[%clk
0:01:56.1]} 17. cxd4 {[%clk 0:02:04.5]} 17... Be4 {[%clk 0:01:56.5]} 18. Qb3
{[%clk 0:02:02]} 18... Rb8 {[%clk 0:01:50.4]} 19. Rac1 {[%clk 0:01:58.6]} 19...
Bxf3 {[%clk 0:01:28]} 20. Qxf3 {[%clk 0:01:52.4]} 20... Bxd4 {[%clk 0:01:24.8]}
21. Bh3 {[%clk 0:01:52.4]} 21... Ne5 {[%clk 0:01:09.7]} 22. Qg2 {[%clk
0:01:48.1]} 22... Qb7 {[%clk 0:00:55.3]} 23. Qxb7 {[%clk 0:01:47.5]} 23... Rxb7
{[%clk 0:00:55.9]} 24. Bg2 {[%clk 0:01:33.5]} 24... Rbb8 {[%clk 0:00:55.6]} 25.
e3 {[%clk 0:01:29.3]} 25... Nd3 {[%clk 0:00:33.1]} 26. Bc6 {[%clk 0:01:22.5]}
26... Nxe1 {[%clk 0:00:29.7]} 27. Rxe1 {[%clk 0:01:20.7]} 27... Re5 {[%clk
0:00:19.3]} 28. Bf4 {[%clk 0:01:13.9]} 28... Re7 {[%clk 0:00:17.4]} 29. Bg5
{[%clk 0:01:02]} 29... f6 {[%clk 0:00:16.8]} 30. Rd1 {[%clk 0:01:02.2]} 30...
Be5 {[%clk 0:00:12.3]} 31. Bf4 {[%clk 0:01:02.4]} 31... Bxf4 {[%clk 0:00:11]}
32. gxf4 {[%clk 0:01:02.8]} 32... Kf7 {[%clk 0:00:07.9]} 33. Kg2 {[%clk
0:01:03.4]} 33... f5 {[%clk 0:00:07.7]} 34. Kf3 {[%clk 0:01:03.3]} 34... Kf6
{[%clk 0:00:08.2]} 35. Bd5 {[%clk 0:01:02.3]} 35... Rc8 {[%clk 0:00:06.3]} 36.
Bb7 {[%clk 0:01:01.9]} 36... Rd8 {[%clk 0:00:05.4]} 37. Bd5 {[%clk 0:01:01.3]}
37... Ree8 {[%clk 0:00:03.9]} 38. Rd2 {[%clk 0:01:01.1]} 38... Re7 {[%clk
0:00:04]} 39. Bc6 {[%clk 0:01:01.4]} 39... Rf8 {[%clk 0:00:03.6]} 40. Bd5 {[%clk
0:01:01.7]} 40... g5 {[%clk 0:00:03.6]} 41. fxg5+ {[%clk 0:01:01.6]} 41... Kxg5
{[%clk 0:00:04.3]} 42. Rd1 {[%clk 0:01:00.3]} 42... Kxh6 {[%clk 0:00:04.5]} 43.
Kf4 {[%clk 0:00:59.8]} 43... Kg7 {[%clk 0:00:04.5]} 44. Rg1+ {[%clk 0:00:59.8]}
44... Kh8 {[%clk 0:00:04.6]} 45. Rg5 {[%clk 0:00:58.4]} 45... Rg7 {[%clk
0:00:04.2]} 46. Rh5 {[%clk 0:00:58.8]} 46... Re7 {[%clk 0:00:02.6]} 47. Rh6
{[%clk 0:00:56.7]} 47... Rg7 {[%clk 0:00:02.5]} 48. Rh1 {[%clk 0:00:55.5]} 48...
Rg4+ {[%clk 0:00:02.4]} 49. Kf3 {[%clk 0:00:54.8]} 49... Kg7 {[%clk 0:00:02.7]}
50. Ke2 {[%clk 0:00:52.3]} 50... Rg6 {[%clk 0:00:02.3]} 51. Kf3 {[%clk
0:00:52.1]} 51... Rgf6 {[%clk 0:00:01.7]} 52. Kf4 {[%clk 0:00:52.3]} 52... Rg6
{[%clk 0:00:01.8]} 53. Bf3 {[%clk 0:00:46.1]} 53... Re8 {[%clk 0:00:01.3]} 54.
Rh5 {[%clk 0:00:44.6]} 54... Re5 {[%clk 0:00:01.3]} 55. Bd5 {[%clk 0:00:44.4]}
55... Re7 {[%clk 0:00:01.2]} 56. Kf3 {[%clk 0:00:45.3]} 56... Re8 {[%clk
0:00:01.5]} 57. Kf4 {[%clk 0:00:46.2]} 57... Rf8 {[%clk 0:00:02]} 58. Rh2 {[%clk
0:00:45.6]} 58... Re8 {[%clk 0:00:02.6]} 59. Kf3 {[%clk 0:00:45.8]} 59... Rf8
{[%clk 0:00:03]} 60. Kf4 {[%clk 0:00:45.1]} 60... Rg4+ {[%clk 0:00:03.4]} 61.
Kf3 {[%clk 0:00:45.4]} 61... h6 {[%clk 0:00:03.8]} 62. Be6 {[%clk 0:00:44.8]}
62... Rg5 {[%clk 0:00:03.7]} 63. Kf4 {[%clk 0:00:43.8]} 63... Kg6 {[%clk
0:00:03.9]} 64. Bd5 {[%clk 0:00:43.4]} 64... h5 {[%clk 0:00:04.1]} 65. Bf3
{[%clk 0:00:40.7]} 65... Rh8 {[%clk 0:00:03.3]} 66. Rh4 {[%clk 0:00:40.8]} 66...
Rh6 {[%clk 0:00:02.6]} 67. Bc6 {[%clk 0:00:39]} 67... Rg4+ {[%clk 0:00:02.3]}
68. Rxg4+ {[%clk 0:00:38.3]} 68... hxg4 {[%clk 0:00:02.9]} 69. Bd7 {[%clk
0:00:38.3]} 69... Rh4 {[%clk 0:00:02.5]} 70. Bxf5+ {[%clk 0:00:38]} 70... Kf6
{[%clk 0:00:02.9]} 71. Bxg4 {[%clk 0:00:37.3]} 71... Rh1 {[%clk 0:00:02.9]} 72.
Bd7 {[%clk 0:00:36]} 72... Rc1 {[%clk 0:00:02.7]} 73. Bb5 {[%clk 0:00:35.6]}
73... Rc2 {[%clk 0:00:02.7]} 74. f3 {[%clk 0:00:35.5]} 74... c6 {[%clk
0:00:02.8]} 75. Bxc6 {[%clk 0:00:35.6]} 75... Rxc4+ {[%clk 0:00:02.7]} 76. Be4
{[%clk 0:00:36.5]} 76... d5 {[%clk 0:00:03.1]} 77. Kg3 {[%clk 0:00:37.4]} 77...
dxe4 {[%clk 0:00:03]} 78. Kf4 {[%clk 0:00:38.3]} 78... exf3+ {[%clk 0:00:02.8]}
79. Kxf3 {[%clk 0:00:39.2]} 79... Rxa4 {[%clk 0:00:01.8]} 80. Ke2 {[%clk
0:00:40.1]} 80... Ke5 {[%clk 0:00:02]} 81. Kd3 {[%clk 0:00:41]} 81... Kd5 {[%clk
0:00:02.4]} 82. Kc3 {[%clk 0:00:41.9]} 82... Ra3+ {[%clk 0:00:02.7]} 83. Kd2
{[%clk 0:00:42.3]} 83... Ke4 {[%clk 0:00:02.3]} 84. Ke2 {[%clk 0:00:42]} 84...
Rxe3+ {[%clk 0:00:02.9]} 85. Kd2 {[%clk 0:00:42.9]} 85... Rh3 {[%clk 0:00:02.9]}
86. Kc2 {[%clk 0:00:43.8]} 86... a4 {[%clk 0:00:03.5]} 87. Kb2 {[%clk
0:00:44.7]} 87... a3+ {[%clk 0:00:04]} 88. Ka2 {[%clk 0:00:45.6]} 88... b5
{[%clk 0:00:04.7]} 89. Ka1 {[%clk 0:00:46.1]} 89... b4 {[%clk 0:00:05.1]} 90.
Kb1 {[%clk 0:00:47]} 90... b3 {[%clk 0:00:05.3]} 91. Kc1 {[%clk 0:00:47.9]}
91... Rh2 {[%clk 0:00:05.5]} 92. Kd1 {[%clk 0:00:48]} 92... a2 {[%clk
0:00:05.5]} 93. Ke1 {[%clk 0:00:48.9]} 93... a1=Q# {[%clk 0:00:05.9]} 0-1

[Event "Early-Titled-Tuesday-Blitz-February-06-2024"]
[Site "Chess.com"]
[Date "2024.02.06"]
[Round "1"]
[White "Barmen_EV"]
[Black "Sam_ChessMood"]
[Result "1/2-1/2"]
[WhiteElo "2505"]
[BlackElo "2904"]
[TimeControl "180+1"]
[EndTime "8:09:12 PST"]
[Termination "Game drawn - insufficient material"]

1. e4 {[%clk 0:02:59.9]} 1... c5 {[%clk 0:02:59.3]} 2. Nf3 {[%clk 0:02:59.1]}
2... e6 {[%clk 0:02:59.3]} 3. c3 {[%clk 0:02:58.4]} 3... d5 {[%clk 0:02:58.8]}
4. exd5 {[%clk 0:02:59.3]} 4... exd5 {[%clk 0:02:58.7]} 5. d4 {[%clk 0:02:58.1]}
5... Nc6 {[%clk 0:02:58.9]} 6. Bd3 {[%clk 0:02:57]} 6... Bd6 {[%clk 0:02:53.3]}
7. h3 {[%clk 0:02:57.7]} 7... Nge7 {[%clk 0:02:52.2]} 8. dxc5 {[%clk 0:02:54.3]}
8... Bxc5 {[%clk 0:02:51.9]} 9. O-O {[%clk 0:02:55.2]} 9... O-O {[%clk
0:02:51.5]} 10. Nbd2 {[%clk 0:02:53.6]} 10... Bb6 {[%clk 0:02:50]} 11. Nb3
{[%clk 0:02:52.4]} 11... Ng6 {[%clk 0:02:42.7]} 12. Re1 {[%clk 0:02:46.5]} 12...
Qd6 {[%clk 0:02:42.3]} 13. Be3 {[%clk 0:02:32.3]} 13... Bxe3 {[%clk 0:02:32.4]}
14. Rxe3 {[%clk 0:02:33.2]} 14... Bd7 {[%clk 0:02:18.4]} 15. Bxg6 {[%clk
0:02:22.3]} 15... hxg6 {[%clk 0:02:06.1]} 16. Qd2 {[%clk 0:02:16.5]} 16... Rad8
{[%clk 0:02:04]} 17. Rd1 {[%clk 0:02:16.6]} 17... Be6 {[%clk 0:02:00.4]} 18.
Nbd4 {[%clk 0:02:13.7]} 18... Nxd4 {[%clk 0:01:59.3]} 19. Nxd4 {[%clk
0:02:13.4]} 19... Bd7 {[%clk 0:01:58.7]} 20. Nf3 {[%clk 0:01:52.5]} 20... Ba4
{[%clk 0:01:55]} 21. Rde1 {[%clk 0:01:50.4]} 21... Rfe8 {[%clk 0:01:51.8]} 22.
Qd4 {[%clk 0:01:40.9]} 22... Rxe3 {[%clk 0:01:38.2]} 23. Rxe3 {[%clk 0:01:41.8]}
23... Qa6 {[%clk 0:01:31.9]} 24. Ng5 {[%clk 0:00:58.3]} 24... Qc4 {[%clk
0:01:24.2]} 25. Qxa7 {[%clk 0:00:50.5]} 25... d4 {[%clk 0:01:07.6]} 26. Re4
{[%clk 0:00:19.4]} 26... Be8 {[%clk 0:00:21.4]} 27. Rxd4 {[%clk 0:00:19.3]}
27... Rxd4 {[%clk 0:00:20.1]} 28. Qxd4 {[%clk 0:00:19.5]} 28... Qxa2 {[%clk
0:00:16.2]} 29. Qd8 {[%clk 0:00:16.5]} 29... Qa4 {[%clk 0:00:12.5]} 30. b3
{[%clk 0:00:13.9]} 30... Qc6 {[%clk 0:00:07.6]} 31. c4 {[%clk 0:00:12.6]} 31...
f6 {[%clk 0:00:07.3]} 32. Nf3 {[%clk 0:00:12.8]} 32... Kh7 {[%clk 0:00:03.3]}
33. h4 {[%clk 0:00:11.6]} 33... Bf7 {[%clk 0:00:02.8]} 34. Qe7 {[%clk
0:00:10.7]} 34... Qe6 {[%clk 0:00:02.3]} 35. Qxe6 {[%clk 0:00:09.5]} 35... Bxe6
{[%clk 0:00:03.2]} 36. Nd4 {[%clk 0:00:10.4]} 36... Bd7 {[%clk 0:00:03.7]} 37.
g3 {[%clk 0:00:09.8]} 37... g5 {[%clk 0:00:04.2]} 38. hxg5 {[%clk 0:00:08.7]}
38... fxg5 {[%clk 0:00:05.1]} 39. Kf1 {[%clk 0:00:09.3]} 39... Kg6 {[%clk
0:00:05.8]} 40. Ke2 {[%clk 0:00:09.9]} 40... Kf6 {[%clk 0:00:06.5]} 41. Ke3
{[%clk 0:00:10.6]} 41... Ke5 {[%clk 0:00:06.8]} 42. Nf3+ {[%clk 0:00:11]} 42...
Kf5 {[%clk 0:00:06.4]} 43. Kd4 {[%clk 0:00:11.4]} 43... Bc6 {[%clk 0:00:05.6]}
44. Ne5 {[%clk 0:00:11.8]} 44... Be8 {[%clk 0:00:05.8]} 45. b4 {[%clk
0:00:12.2]} 45... Ke6 {[%clk 0:00:05.9]} 46. b5 {[%clk 0:00:09.9]} 46... Kd6
{[%clk 0:00:05]} 47. c5+ {[%clk 0:00:09.1]} 47... Ke6 {[%clk 0:00:05.4]} 48. c6
{[%clk 0:00:08.2]} 48... bxc6 {[%clk 0:00:05.3]} 49. b6 {[%clk 0:00:06.8]} 49...
Kd6 {[%clk 0:00:05.7]} 50. Nc4+ {[%clk 0:00:05]} 50... Kd7 {[%clk 0:00:05.8]}
51. Kc5 {[%clk 0:00:05.3]} 51... Bh5 {[%clk 0:00:04.4]} 52. Ne5+ {[%clk
0:00:05.3]} 52... Kc8 {[%clk 0:00:04.6]} 53. Kxc6 {[%clk 0:00:05.7]} 53... Be8+
{[%clk 0:00:03.7]} 54. Kc5 {[%clk 0:00:04.2]} 54... Kb7 {[%clk 0:00:03.8]} 55.
Nc4 {[%clk 0:00:04.9]} 55... Bh5 {[%clk 0:00:03.4]} 56. Nd6+ {[%clk 0:00:05.3]}
56... Kb8 {[%clk 0:00:03.7]} 57. Nf5 {[%clk 0:00:05.7]} 57... g6 {[%clk
0:00:03.3]} 58. Ne7 {[%clk 0:00:05.5]} 58... Kb7 {[%clk 0:00:03]} 59. Nc6 {[%clk
0:00:03.5]} 59... Bf3 {[%clk 0:00:02.6]} 60. Ne5 {[%clk 0:00:04]} 60... Be4
{[%clk 0:00:02.3]} 61. Nc4 {[%clk 0:00:03.7]} 61... Bb1 {[%clk 0:00:02.2]} 62.
Kd6 {[%clk 0:00:02.8]} 62... Bd3 {[%clk 0:00:01.7]} 63. Na5+ {[%clk 0:00:03.4]}
63... Kxb6 {[%clk 0:00:01.7]} 64. Nb3 {[%clk 0:00:03.3]} 64... Kb5 {[%clk
0:00:02.2]} 65. Nd4+ {[%clk 0:00:03.9]} 65... Kc4 {[%clk 0:00:02.6]} 66. Nf3
{[%clk 0:00:03.8]} 66... g4 {[%clk 0:00:02.3]} 67. Ne5+ {[%clk 0:00:04.3]} 67...
Kd4 {[%clk 0:00:02.7]} 68. Nxg4 {[%clk 0:00:03.2]} 68... Ke4 {[%clk 0:00:03]}
69. Ke6 {[%clk 0:00:02.3]} 69... Kf3 {[%clk 0:00:02.1]} 70. Ne5+ {[%clk
0:00:03]} 70... Kxf2 {[%clk 0:00:02.6]} 71. g4 {[%clk 0:00:01.7]} 71... Bf5+
{[%clk 0:00:01.9]} 72. gxf5 {[%clk 0:00:01.3]} 72... gxf5 {[%clk 0:00:02.8]} 73.
Kxf5 {[%clk 0:00:02.2]} 1/2-1/2